fUST/lending_fUST_20240928
["ID","MTS","AMOUNT","RATE_DAILY","PERIOD"]
[339345775,1727457041137,-158.616725,0.00018959,2]
[339345776,1727457041150,-491.473115,0.00018959,2]
[339345777,1727457041160,-491.473115,0.00018959,2]
[339345778,1727457041169,-347.447032,0.00018959,2]
[339345779,1727457041179,-347.447032,0.00018959,2]
[339345780,1727457041188,-151.0,0.00018959,2]
[339345781,1727457041198,-21563.9903954,0.00018959,3]
[339345782,1727457041207,-291.985378,0.0001896,2]
[339345783,1727457041217,-291.985378,0.0001896,2]
[339345784,1727457041228,-308.103314,0.0001896,2]
[339345785,1727457041238,-308.103314,0.0001896,2]
[339345786,1727457041249,-347.030453,0.0001896,2]
[339345787,1727457041257,-347.030453,0.0001896,2]
[339345788,1727457041266,-790.940848,0.0001896,2]
[339345789,1727457041275,-790.940848,0.0001896,2]
[339345790,1727457041284,-151.0,0.00018961,2]
[339345791,1727457041294,-151.0,0.00018961,2]
[339345792,1727457041303,-151.0,0.00018961,2]
[339345793,1727457041312,-151.0,0.00018961,2]
[339345794,1727457041322,-151.0,0.00018961,2]
[339345795,1727457041333,-151.0,0.00018961,2]
[339345796,1727457041343,-268.343585,0.00018969,2]
[339345797,1727457041353,-151.0,0.00018969,2]
[339345798,1727457041364,-268.343585,0.00018969,2]
[339345799,1727457041372,-187.847115,0.00018969,2]
[339345800,1727457041382,-151.0,0.00018969,2]
[339345801,1727457041392,-187.847115,0.00018969,2]
[339345802,1727457041401,-151.0,0.00018969,2]
[339345803,1727457041412,-757.089979,0.00018969,2]
[339345804,1727457041425,-151.0,0.00018969,2]
[339345805,1727457041435,-151.0,0.00018969,2]
[339345806,1727457041445,-757.089979,0.00018969,2]
[339345807,1727457041456,-3329.380208,0.00018969,2]
[339345808,1727457041465,-3329.380208,0.00018969,2]
[339345809,1727457041475,-151.0,0.00018969,2]
[339345810,1727457041487,-1262.342268,0.00018969,2]
[339345811,1727457041496,-1262.342268,0.00018969,2]
[339345812,1727457041506,-151.0,0.00018969,2]
[339345813,1727457041516,-151.0,0.00018969,2]
[339345814,1727457041525,-399.018449,0.00018969,2]
[339345815,1727457041534,-399.018449,0.00018969,2]
[339345816,1727457041544,-195.918373,0.00018969,2]
[339345817,1727457041552,-371.503728,0.00018969,2]
[339345818,1727457041562,-371.503728,0.00018969,2]
[339345819,1727457041574,-151.0,0.00018969,2]
[339345820,1727457041582,-151.0,0.00018969,2]
[339345821,1727457041592,-151.0,0.00018969,2]
[339345822,1727457041601,-151.0,0.00018969,2]
[339345823,1727457041610,-404.801962,0.00018969,2]
[339345824,1727457041620,-404.801962,0.00018969,2]
[339345825,1727457041629,-151.0,0.00018969,2]
[339345826,1727457041638,-157.199082,0.0001897,2]
[339345827,1727457041649,-157.199082,0.0001897,2]
[339345828,1727457041658,-151.0,0.0001897,2]
[339345829,1727457041667,-288.414808,0.0001897,2]
[339345830,1727457041676,-288.414808,0.0001897,2]
[339345831,1727457041685,-151.0,0.0001897,2]
[339345832,1727457041695,-1492.419317,0.0001897,2]
[339345833,1727457041704,-1492.419317,0.0001897,2]
[339345834,1727457041713,-151.0,0.0001897,2]
[339345835,1727457041723,-151.0,0.0001897,2]
[339345836,1727457041732,-151.0,0.0001897,2]
[339345837,1727457041741,-151.0,0.0001897,2]
[339345838,1727457041750,-151.0,0.0001897,2]
[339345839,1727457041759,-151.0,0.0001897,2]
[339345840,1727457041768,-151.0,0.0001897,2]
[339345841,1727457041779,-347.030453,0.0001897,2]
[339345842,1727457041788,-347.030453,0.0001897,2]
[339345843,1727457041797,-288.414808,0.00018972,2]
[339345844,1727457041806,-288.414808,0.00018972,2]
[339345845,1727457041815,-800.0,0.00018972,2]
[339345846,1727457041824,-151.0,0.00018979,2]
[339345847,1727457041834,-151.0,0.00018979,2]
[339345848,1727457041843,-171.292401,0.00018979,2]
[339345849,1727457041852,-151.0,0.00018979,2]
[339345850,1727457041862,-254.531945,0.00018979,2]
[339345851,1727457041872,-254.531945,0.00018979,2]
[339345852,1727457041882,-254.531945,0.00018979,2]
[339345853,1727457041891,-254.531945,0.00018979,2]
[339345854,1727457041901,-254.531945,0.00018979,2]
[339345855,1727457041911,-254.531945,0.00018979,2]
[339345856,1727457041920,-151.0,0.00018979,2]
[339345857,1727457041930,-151.0,0.00018979,2]
[339345858,1727457041940,-151.0,0.00018979,2]
[339345859,1727457041949,-151.0,0.00018979,2]
[339345860,1727457041958,-291.985378,0.00018979,2]
[339345861,1727457041967,-291.985378,0.00018979,2]
[339345862,1727457041977,-308.103314,0.00018979,2]
[339345863,1727457041987,-308.103314,0.00018979,2]
[339345864,1727457041997,-347.030453,0.00018979,2]
[339345865,1727457042007,-347.030453,0.00018979,2]
[339345866,1727457042016,-347.030453,0.00018979,2]
[339345867,1727457042026,-347.030453,0.00018979,2]
[339345868,1727457042037,-790.940848,0.00018979,2]
[339345869,1727457042047,-790.940848,0.00018979,2]
[339345870,1727457042057,-781.017403,0.00018979,2]
[339345871,1727457042068,-781.017403,0.00018979,2]
[339345872,1727457042077,-563.693894,0.00018979,2]
[339345873,1727457042086,-563.693894,0.00018979,2]
[339345874,1727457042096,-534.031739,0.00018979,2]
[339345875,1727457042105,-534.031739,0.00018979,2]
[339345876,1727457042116,-347.447032,0.00018979,2]
[339345877,1727457042126,-347.447032,0.00018979,2]
[339345878,1727457042136,-21563.9903954,0.0001898,3]
[339345879,1727457042146,-151.0,0.00018989,2]
[339345880,1727457042156,-277.424647,0.00018989,2]
[339345881,1727457042168,-151.0,0.0001899,2]
[339345882,1727457042177,-151.0,0.0001899,2]
[339345883,1727457042186,-151.0,0.0001899,2]
[339345884,1727457042197,-151.0,0.0001899,2]
[339345885,1727457042209,-157.199082,0.0001899,2]
[339345886,1727457042219,-157.199082,0.0001899,2]
[339345887,1727457042229,-157.199082,0.0001899,2]
[339345888,1727457042238,-157.199082,0.0001899,2]
[339345889,1727457042249,-208.112236,0.0001899,2]
[339345890,1727457042258,-288.414808,0.0001899,2]
[339345891,1727457042268,-288.414808,0.0001899,2]
[339345892,1727457042279,-288.414808,0.0001899,2]
[339345893,1727457042288,-288.414808,0.0001899,2]
[339345894,1727457042297,-151.0,0.0001899,2]
[339345895,1727457042308,-151.0,0.0001899,2]
[339345896,1727457042317,-1492.419317,0.0001899,2]
[339345897,1727457042327,-1492.419317,0.0001899,2]
[339345898,1727457042336,-1492.419317,0.0001899,2]
[339345899,1727457042346,-1492.419317,0.0001899,2]
[339345900,1727457042356,-151.0,0.0001899,2]
[339345901,1727457042367,-151.0,0.0001899,2]
[339345902,1727457042376,-254.531945,0.0001899,2]
[339345903,1727457042385,-254.531945,0.0001899,2]
[339345904,1727457042396,-291.985378,0.0001899,2]
[339345905,1727457042405,-291.985378,0.0001899,2]
[339345906,1727457042415,-347.030453,0.0001899,2]
[339345907,1727457042424,-347.030453,0.0001899,2]
[339345908,1727457042433,-268.343585,0.0001899,2]
[339345909,1727457042442,-151.0,0.0001899,2]
[339345910,1727457042451,-268.343585,0.0001899,2]
[339345911,1727457042460,-187.847115,0.0001899,2]
[339345912,1727457042469,-187.847115,0.0001899,2]
[339345913,1727457042479,-154.098856,0.0001899,2]
[339345914,1727457042488,-187.847115,0.0001899,2]
[339345915,1727457042497,-187.847115,0.0001899,2]
[339345916,1727457042506,-151.0,0.0001899,2]
[339345917,1727457042515,-781.017403,0.0001899,2]
[339345918,1727457042524,-781.017403,0.0001899,2]
[339345920,1727457042534,-563.693894,0.0001899,2]
[339345921,1727457042543,-757.089979,0.0001899,2]
[339345922,1727457042553,-151.0,0.0001899,2]
[339345923,1727457042562,-757.089979,0.0001899,2]
[339345924,1727457042571,-563.693894,0.0001899,2]
[339345925,1727457042584,-151.0,0.0001899,2]
[339345926,1727457042593,-757.089979,0.0001899,2]
[339345927,1727457042602,-757.089979,0.0001899,2]
[339345928,1727457042611,-3329.380208,0.0001899,2]
[339345929,1727457042621,-3329.380208,0.0001899,2]
[339345930,1727457042630,-3329.380208,0.0001899,2]
[339345931,1727457042640,-3329.380208,0.0001899,2]
[339345933,1727457042650,-151.0,0.0001899,2]
[339345935,1727457042661,-151.0,0.0001899,2]
[339345937,1727457042671,-1262.342268,0.0001899,2]
[339345940,1727457042679,-1262.342268,0.0001899,2]
[339345942,1727457042690,-151.0,0.0001899,2]
[339345944,1727457042699,-151.0,0.0001899,2]
[339345946,1727457042708,-151.0,0.0001899,2]
[339345948,1727457042717,-151.0,0.0001899,2]
[339345950,1727457042727,-534.031739,0.0001899,2]
[339345951,1727457042737,-534.031739,0.0001899,2]
[339345953,1727457042747,-151.0,0.0001899,2]
[339345955,1727457042756,-366.158211,0.0001899,2]
[339345957,1727457042765,-366.158211,0.0001899,2]
[339345959,1727457042775,-151.0,0.0001899,2]
[339345961,1727457042784,-937.638017,0.0001899,2]
[339345963,1727457042793,-937.638017,0.0001899,2]
[339345965,1727457042802,-399.018449,0.0001899,2]
[339345967,1727457042812,-399.018449,0.0001899,2]
[339345968,1727457042823,-202.893025,0.0001899,2]
[339345970,1727457042833,-158.616725,0.0001899,2]
[339345972,1727457042845,-158.616725,0.0001899,2]
[339345975,1727457042856,-491.473115,0.0001899,2]
[339345976,1727457042866,-491.473115,0.0001899,2]
[339345978,1727457042875,-347.447032,0.0001899,2]
[339345989,1727457042969,-347.447032,0.0001899,2]
[339345991,1727457042988,-64691.9711863,0.0001899,3]
[339345993,1727457042998,-371.503728,0.0001899,2]
[339345995,1727457043009,-371.503728,0.0001899,2]
[339345997,1727457043019,-151.0,0.0001899,2]
[339345999,1727457043029,-151.0,0.0001899,2]
[339346001,1727457043041,-151.0,0.0001899,2]
[339346003,1727457043050,-151.0,0.0001899,2]
[339346005,1727457043061,-151.0,0.0001899,2]
[339346007,1727457043071,-404.801962,0.0001899,2]
[339346009,1727457043080,-404.801962,0.0001899,2]
[339346011,1727457043090,-151.0,0.0001899,2]
[339346013,1727457043101,-309.20853301,0.00018999,2]
[339346015,1727457043111,-120785.49,0.00019,2]
[339346016,1727457043120,-151.0,0.00019,2]
[339346018,1727457043130,-151.0,0.00019,2]
[339346021,1727457043143,-151.0,0.00019,2]
[339346023,1727457043153,-265.4086,0.00019,2]
[339346027,1727457043164,-265.4086,0.00019,2]
[339346029,1727457043174,-151.0,0.00019,2]
[339346031,1727457043186,-151.0,0.00019,2]
[339346033,1727457043196,-151.0,0.00019,2]
[339346034,1727457043207,-151.0,0.00019,2]
[339346036,1727457043218,-157.199082,0.00019,2]
[339346039,1727457043228,-157.199082,0.00019,2]
[339346041,1727457043238,-288.414808,0.00019,2]
[339346042,1727457043247,-288.414808,0.00019,2]
[339346044,1727457043260,-151.0,0.00019,2]
[339346046,1727457043270,-1492.419317,0.00019,2]
[339346049,1727457043282,-1492.419317,0.00019,2]
[339346051,1727457043293,-355.168131,0.00019,2]
[339346053,1727457043303,-355.168131,0.00019,2]
[339346054,1727457043312,-151.0,0.00019,2]
[339346056,1727457043322,-151.0,0.00019,2]
[339346058,1727457043331,-151.0,0.00019,2]
[339346060,1727457043340,-151.0,0.00019,2]
[339346062,1727457043350,-254.531945,0.00019,2]
[339346064,1727457043359,-254.531945,0.00019,2]
[339346066,1727457043368,-151.0,0.00019,2]
[339346068,1727457043377,-151.0,0.00019,2]
[339346070,1727457043387,-291.985378,0.00019,2]
[339346072,1727457043396,-291.985378,0.00019,2]
[339346074,1727457043405,-308.103314,0.00019,2]
[339346075,1727457043415,-308.103314,0.00019,2]
[339346077,1727457043424,-347.030453,0.00019,2]
[339346079,1727457043434,-347.030453,0.00019,2]
[339346082,1727457043444,-268.343585,0.00019,2]
[339346084,1727457043455,-151.0,0.00019,2]
[339346085,1727457043464,-268.343585,0.00019,2]
[339346087,1727457043474,-790.940848,0.00019,2]
[339346090,1727457043485,-790.940848,0.00019,2]
[339346092,1727457043498,-187.847115,0.00019,2]
[339346093,1727457043507,-187.847115,0.00019,2]
[339346095,1727457043517,-1000.0,0.00019,2]
[339346097,1727457043526,-1000.0,0.00019,2]
[339346099,1727457043537,-1000.0,0.00019,2]
[339346101,1727457043547,-1000.0,0.00019,2]
[339346103,1727457043556,-1000.0,0.00019,2]
[339346105,1727457043567,-1000.0,0.00019,2]
[339346107,1727457043577,-1000.0,0.00019,2]
[339346109,1727457043586,-1000.0,0.00019,2]
[339346111,1727457043596,-1000.0,0.00019,2]
[339346112,1727457043605,-1000.0,0.00019,2]
[339346114,1727457043615,-1000.0,0.00019,2]
[339346116,1727457043624,-1000.0,0.00019,2]
[339346118,1727457043633,-1000.0,0.00019,2]
[339346120,1727457043643,-1000.0,0.00019,2]
[339346122,1727457043653,-1000.0,0.00019,2]
[339346124,1727457043663,-1000.0,0.00019,2]
[339346126,1727457043672,-1000.0,0.00019,2]
[339346128,1727457043682,-1000.0,0.00019,2]
[339346129,1727457043691,-1000.0,0.00019,2]
[339346131,1727457043701,-1000.0,0.00019,2]
[339346133,1727457043711,-1000.0,0.00019,2]
[339346135,1727457043721,-1000.0,0.00019,2]
[339346137,1727457043739,-1000.0,0.00019,2]
[339346139,1727457043750,-1000.0,0.00019,2]
[339346141,1727457043759,-1000.0,0.00019,2]
[339346143,1727457043768,-1000.0,0.00019,2]
[339346145,1727457043780,-1000.0,0.00019,2]
[339346146,1727457043789,-625.90880835,0.00019,2]
[339346148,1727457043798,-151.0,0.00019,2]
[339346150,1727457043808,-781.017403,0.00019,2]
[339346152,1727457043820,-781.017403,0.00019,2]
[339346154,1727457043829,-563.693894,0.00019,2]
[339346156,1727457043839,-151.0,0.00019,2]
[339346158,1727457043849,-757.089979,0.00019,2]
[339346160,1727457043858,-563.693894,0.00019,2]
[339346162,1727457043868,-151.0,0.00019,2]
[339346163,1727457043877,-757.089979,0.00019,2]
[339346165,1727457043887,-3329.380208,0.00019,2]
[339346167,1727457043896,-3329.380208,0.00019,2]
[339346169,1727457043906,-151.0,0.00019,2]
[339346171,1727457043915,-1262.342268,0.00019,2]
[339346173,1727457043924,-1262.342268,0.00019,2]
[339346175,1727457043935,-151.0,0.00019,2]
[339346177,1727457043945,-151.0,0.00019,2]
[339346179,1727457043958,-534.031739,0.00019,2]
[339346181,1727457043967,-534.031739,0.00019,2]
[339346183,1727457043977,-238.377683,0.00019,2]
[339346185,1727457043988,-366.158211,0.00019,2]
[339346187,1727457043997,-366.158211,0.00019,2]
[339346189,1727457044007,-937.638017,0.00019,2]
[339346191,1727457044017,-937.638017,0.00019,2]
[339346193,1727457044028,-399.018449,0.00019,2]
[339346195,1727457044039,-399.018449,0.00019,2]
[339346197,1727457044049,-158.616725,0.00019,2]
[339346199,1727457044059,-158.616725,0.00019,2]
[339346201,1727457044070,-491.473115,0.00019,2]
[339346203,1727457044080,-491.473115,0.00019,2]
[339346205,1727457044091,-347.447032,0.00019,2]
[339346207,1727457044100,-347.447032,0.00019,2]
[339346209,1727457044111,-371.503728,0.00019,2]
[339346211,1727457044120,-371.503728,0.00019,2]
[339346212,1727457044130,-151.0,0.00019,2]
[339346214,1727457044140,-151.0,0.00019,2]
[339346216,1727457044149,-151.0,0.00019,2]
[339346218,1727457044160,-151.0,0.00019,2]
[339346220,1727457044170,-239.90603,0.00019,2]
[339346222,1727457044180,-404.801962,0.00019,2]
[339346224,1727457044189,-404.801962,0.00019,2]
[339346226,1727457044199,-151.0,0.00019,2]
[339346228,1727457044208,-150.0,0.00019028,2]
[339346230,1727457044218,-150.112233,0.000191,2]
[339346232,1727457044228,-150.112233,0.000191,2]
[339346234,1727457044237,-150.112233,0.000191,2]
[339346236,1727457044247,-716.026356,0.00019104,2]
[339346238,1727457044256,-151.0,0.00019158,2]
[339346239,1727457044265,-151.0,0.00019158,2]
[339346241,1727457044275,-151.0,0.00019158,2]
[339346243,1727457044284,-151.0,0.00019158,2]
[339346245,1727457044296,-151.0,0.00019158,2]
[339346247,1727457044307,-151.0,0.00019158,2]
[339346249,1727457044317,-265.4086,0.00019158,2]
[339346251,1727457044326,-265.4086,0.00019158,2]
[339346253,1727457044336,-151.0,0.00019158,2]
[339346255,1727457044347,-151.0,0.00019158,2]
[339346258,1727457044358,-355.168131,0.00019158,2]
[339346260,1727457044368,-355.168131,0.00019158,2]
[339346261,1727457044377,-366.158211,0.00019158,2]
[339346263,1727457044388,-366.158211,0.00019158,2]
[339346266,1727457044399,-937.638017,0.00019158,2]
[339346267,1727457044409,-937.638017,0.00019158,2]
[339346269,1727457044418,-399.018449,0.00019158,2]
[339346271,1727457044427,-399.018449,0.00019158,2]
[339346273,1727457044438,-158.616725,0.00019158,2]
[339346275,1727457044447,-158.616725,0.00019158,2]
[339346276,1727457044456,-491.473115,0.00019158,2]
[339346278,1727457044466,-491.473115,0.00019158,2]
[339346280,1727457044477,-371.503728,0.00019158,2]
[339346282,1727457044488,-371.503728,0.00019158,2]
[339346283,1727457044498,-151.0,0.00019158,2]
[339346284,1727457044509,-151.0,0.00019158,2]
[339346285,1727457044519,-151.0,0.00019158,2]
[339346286,1727457044529,-404.801962,0.00019158,2]
[339346287,1727457044538,-404.801962,0.00019158,2]
[339346288,1727457044549,-151.0,0.00019168,2]
[339346289,1727457044558,-151.0,0.00019168,2]
[339346290,1727457044568,-151.0,0.00019168,2]
[339346291,1727457044581,-197.006377,0.00019168,2]
[339346292,1727457044591,-151.0,0.00019168,2]
[339346293,1727457044601,-151.0,0.00019168,2]
[339346294,1727457044611,-265.4086,0.00019168,2]
[339346295,1727457044622,-265.4086,0.00019168,2]
[339346296,1727457044633,-151.0,0.00019168,2]
[339346297,1727457044643,-151.0,0.00019168,2]
[339346298,1727457044653,-151.0,0.00019168,2]
[339346299,1727457044664,-151.0,0.00019168,2]
[339346300,1727457044674,-157.199082,0.00019168,2]
[339346301,1727457044685,-157.199082,0.00019168,2]
[339346302,1727457044695,-288.414808,0.00019168,2]
[339346303,1727457044705,-288.414808,0.00019168,2]
[339346304,1727457044716,-151.0,0.00019168,2]
[339346305,1727457044726,-1492.419317,0.00019168,2]
[339346306,1727457044737,-1492.419317,0.00019168,2]
[339346307,1727457044747,-355.168131,0.00019168,2]
[339346308,1727457044757,-355.168131,0.00019168,2]
[339346309,1727457044767,-151.0,0.00019168,2]
[339346310,1727457044778,-254.531945,0.00019168,2]
[339346311,1727457044788,-254.531945,0.00019168,2]
[339346312,1727457044797,-347.030453,0.00019168,2]
[339346313,1727457044807,-347.030453,0.00019168,2]
[339346314,1727457044816,-268.343585,0.00019168,2]
[339346315,1727457044826,-151.0,0.00019168,2]
[339346316,1727457044835,-268.343585,0.00019168,2]
[339346317,1727457044844,-187.847115,0.00019168,2]
[339346318,1727457044853,-187.847115,0.00019168,2]
[339346319,1727457044863,-151.0,0.00019168,2]
[339346320,1727457044872,-781.017403,0.00019168,2]
[339346321,1727457044882,-781.017403,0.00019168,2]
[339346322,1727457044891,-563.693894,0.00019168,2]
[339346323,1727457044901,-151.0,0.00019168,2]
[339346324,1727457044910,-757.089979,0.00019168,2]
[339346325,1727457044920,-563.693894,0.00019168,2]
[339346326,1727457044929,-151.0,0.00019168,2]
[339346327,1727457044938,-757.089979,0.00019168,2]
[339346328,1727457044947,-3329.380208,0.00019168,2]
[339346329,1727457044956,-3329.380208,0.00019168,2]
[339346330,1727457044966,-1262.342268,0.00019168,2]
[339346331,1727457044975,-1262.342268,0.00019168,2]
[339346332,1727457044984,-151.0,0.00019168,2]
[339346333,1727457044993,-151.0,0.00019168,2]
[339346334,1727457045003,-534.031739,0.00019168,2]
[339346335,1727457045012,-534.031739,0.00019168,2]
[339346336,1727457045021,-347.447032,0.00019168,2]
[339346337,1727457045030,-347.447032,0.00019168,2]
[339346338,1727457045039,-500.0,0.00019173,2]
[339346339,1727457045049,-500.0,0.00019173,2]
[339346340,1727457045058,-500.0,0.00019173,2]
[339346341,1727457045068,-500.0,0.00019173,2]
[339346342,1727457045077,-501.57713305,0.00019173,2]
[339346343,1727457045087,-500.0,0.00019173,2]
[339346344,1727457045096,-500.0,0.00019173,2]
[339346345,1727457045106,-500.0,0.00019173,2]
[339346346,1727457045115,-500.0,0.00019173,2]
[339346347,1727457045125,-500.39443641,0.00019173,2]
[339346348,1727457045134,-500.0,0.00019173,2]
[339346349,1727457045143,-500.50451328,0.00019173,2]
[339346350,1727457045153,-500.0,0.00019173,2]
[339346351,1727457045272,-500.0,0.00019173,2]
[339346352,1727457045283,-500.13969444,0.00019173,2]
[339346353,1727457045293,-507.23894517,0.00019173,2]
[339346354,1727457045302,-291.985378,0.00019173,2]
[339346355,1727457045313,-291.985378,0.00019173,2]
[339346356,1727457045324,-160.0,0.00019177,2]
[339346357,1727457045334,-160.0,0.00019177,2]
[339346358,1727457045344,-151.0,0.00019178,2]
[339346359,1727457045353,-151.0,0.00019178,2]
[339346360,1727457045363,-151.0,0.00019178,2]
[339346361,1727457045373,-151.0,0.00019178,2]
[339346362,1727457045382,-151.0,0.00019178,2]
[339346363,1727457045391,-265.4086,0.00019178,2]
[339346364,1727457045401,-265.4086,0.00019178,2]
[339346365,1727457045410,-151.0,0.00019178,2]
[339346366,1727457045419,-151.0,0.00019178,2]
[339346367,1727457045429,-151.0,0.00019178,2]
[339346368,1727457045439,-151.0,0.00019178,2]
[339346369,1727457045450,-157.199082,0.00019178,2]
[339346370,1727457045459,-157.199082,0.00019178,2]
[339346371,1727457045469,-288.414808,0.00019178,2]
[339346372,1727457045478,-288.414808,0.00019178,2]
[339346373,1727457045489,-151.0,0.00019178,2]
[339346374,1727457045501,-1492.419317,0.00019178,2]
[339346375,1727457045510,-1492.419317,0.00019178,2]
[339346376,1727457045520,-355.168131,0.00019178,2]
[339346377,1727457045531,-355.168131,0.00019178,2]
[339346378,1727457045540,-151.0,0.00019178,2]
[339346380,1727457045551,-151.0,0.00019178,2]
[339346382,1727457045563,-151.0,0.00019178,2]
[339346384,1727457045574,-151.0,0.00019178,2]
[339346386,1727457045589,-151.0,0.00019178,2]
[339346389,1727457045598,-151.0,0.00019178,2]
[339346390,1727457045609,-155.477593,0.00019178,2]
[339346391,1727457045619,-254.531945,0.00019178,2]
[339346392,1727457045628,-254.531945,0.00019178,2]
[339346393,1727457045639,-254.531945,0.00019178,2]
[339346394,1727457045651,-254.531945,0.00019178,2]
[339346395,1727457045663,-502.35137241,0.00019178,2]
[339346396,1727457045674,-151.0,0.00019178,2]
[339346397,1727457045685,-151.0,0.00019178,2]
[339346398,1727457045694,-151.0,0.00019178,2]
[339346399,1727457045704,-151.0,0.00019178,2]
[339346400,1727457045714,-291.985378,0.00019178,2]
[339346401,1727457045724,-291.985378,0.00019178,2]
[339346403,1727457045733,-291.985378,0.00019178,2]
[339346405,1727457045742,-291.985378,0.00019178,2]
[339346407,1727457045753,-308.103314,0.00019178,2]
[339346408,1727457045763,-308.103314,0.00019178,2]
[339346411,1727457045774,-308.103314,0.00019178,2]
[339346412,1727457045784,-308.103314,0.00019178,2]
[339346414,1727457045793,-517.43819269,0.00019178,2]
[339346416,1727457045803,-500.0,0.00019178,2]
[339346418,1727457045813,-509.13465812,0.00019178,2]
[339346421,1727457045825,-500.0,0.00019178,2]
[339346423,1727457045834,-515.77743723,0.00019178,2]
[339346425,1727457045844,-506.8130447,0.00019178,2]
[339346426,1727457045854,-500.0,0.00019178,2]
[339346428,1727457045863,-500.0,0.00019178,2]
[339346430,1727457045873,-347.030453,0.00019178,2]
[339346433,1727457045884,-347.030453,0.00019178,2]
[339346435,1727457045895,-503.82682857,0.00019178,2]
[339346437,1727457045905,-347.030453,0.00019178,2]
[339346439,1727457045915,-347.030453,0.00019178,2]
[339346441,1727457045927,-268.343585,0.00019178,2]
[339346443,1727457045938,-268.343585,0.00019178,2]
[339346445,1727457045947,-268.343585,0.00019178,2]
[339346446,1727457045957,-500.0,0.00019178,2]
[339346447,1727457045967,-151.0,0.00019178,2]
[339346448,1727457045976,-151.0,0.00019178,2]
[339346449,1727457045986,-268.343585,0.00019178,2]
[339346450,1727457045997,-151.0,0.00019178,2]
[339346451,1727457046007,-268.343585,0.00019178,2]
[339346452,1727457046019,-268.343585,0.00019178,2]
[339346453,1727457046029,-506.86488071,0.00019178,2]
[339346454,1727457046038,-500.0,0.00019178,2]
[339346455,1727457046048,-500.0,0.00019178,2]
[339346456,1727457046060,-500.0,0.00019178,2]
[339346457,1727457046069,-500.0,0.00019178,2]
[339346458,1727457046079,-508.70404606,0.00019178,2]
[339346459,1727457046088,-500.0,0.00019178,2]
[339346460,1727457046097,-500.0,0.00019178,2]
[339346461,1727457046108,-500.0,0.00019178,2]
[339346462,1727457046117,-500.0,0.00019178,2]
[339346463,1727457046128,-528.32,0.00019178,2]
[339346464,1727457046138,-790.940848,0.00019178,2]
[339346465,1727457046148,-790.940848,0.00019178,2]
[339346466,1727457046159,-790.940848,0.00019178,2]
[339346467,1727457046169,-790.940848,0.00019178,2]
[339346468,1727457046178,-500.0,0.00019178,2]
[339346469,1727457046187,-505.39575549,0.00019178,2]
[339346470,1727457046196,-302.08497231,0.00019178,2]
[339346471,1727457046207,-500.0,0.00019178,2]
[339346472,1727457046216,-506.99379314,0.00019178,2]
[339346473,1727457046225,-500.0,0.00019178,2]
[339346474,1727457046235,-500.0,0.00019178,2]
[339346475,1727457046244,-508.71907042,0.00019178,2]
[339346476,1727457046254,-500.0,0.00019178,2]
[339346477,1727457046263,-500.0,0.00019178,2]
[339346478,1727457046273,-501.92014668,0.00019178,2]
[339346479,1727457046283,-503.98889023,0.00019178,2]